bitfinex/quotes_BTCUSD_20220120
["timestamp","ask_amount","ask_price","bid_price","bid_amount"]
[1642641790142,0.2466387,41773.0,41772.0,0.27642033]
[1642641790143,0.2376387,41773.0,41772.0,0.27642033]
[1642641790539,0.15560248,41773.0,41772.0,0.27642033]
[1642641790740,0.05560248,41773.0,41772.0,0.27642033]
[1642641790940,0.01970248,41773.0,41772.0,0.27642033]
[1642641791194,0.01970248,41773.0,41772.0,0.66318733]
[1642641791798,0.00524627,41776.0,41773.0,0.9]
[1642641791997,0.00524627,41776.0,41775.0,0.386767]
[1642641792195,0.5,41786.0,41775.0,0.398717]
[1642641792396,0.50121499,41786.0,41775.0,0.11201876]
[1642641792596,0.00010314,41785.0,41780.0,0.29935772]
[1642641792801,0.17577921,41785.0,41781.0,0.059825]
[1642641792995,8.595e-05,41784.0,41781.0,0.059825]
[1642641793395,6.876e-05,41783.0,41781.0,0.059825]
[1642641793795,0.00121511,41786.0,41782.0,0.059826]
[1642641793995,0.00121511,41786.0,41783.0,0.059825]
[1642641794596,0.06520405,41787.0,41783.0,0.059825]
[1642641794796,0.06641917,41787.0,41783.0,0.119652]
[1642641795037,0.05612033,41786.0,41784.0,0.059825]
[1642641795446,0.05612033,41786.0,41776.0,0.3236448]
[1642641795840,0.11596127,41786.0,41776.0,0.3236448]
[1642641796042,0.05984,41784.0,41776.0,0.3236448]
[1642641796339,0.05984,41784.0,41776.0,0.3834858]
[1642641796340,0.11974812,41783.0,41776.0,0.3834858]
[1642641796544,0.17556146,41783.0,41776.0,0.3834858]
[1642641796742,0.05614044,41782.0,41776.0,0.3236448]
[1642641796941,0.05614044,41782.0,41776.0,0.3766448]
[1642641797140,0.33097544,41781.0,41776.0,0.3766448]
[1642641797341,0.17378169,41780.0,41776.0,0.3766448]
[1642641797640,0.23123968,41780.0,41776.0,0.053]
[1642641798241,0.39943901,41780.0,41775.0,6.876e-05]
[1642641798442,0.44943901,41780.0,41775.0,0.0011363]
[1642641798692,0.44943901,41780.0,41775.0,0.00106754]
[1642641798891,0.45843901,41780.0,41775.0,0.03806754]
[1642641799291,0.45843901,41780.0,41775.0,0.037]
[1642641799492,0.45843901,41780.0,41775.0,0.03806754]
[1642641800095,0.44943901,41780.0,41775.0,0.00106754]
[1642641800493,0.44943901,41780.0,41774.0,8.595e-05]
[1642641800700,0.05984588,41779.0,41775.0,0.00106754]
[1642641800895,0.17953601,41778.0,41775.0,0.04006754]
[1642641801095,0.05642115,41777.0,41775.0,0.04006754]
[1642641801295,0.10642115,41777.0,41775.0,0.04006754]
[1642641801694,0.10642115,41777.0,41775.0,0.039]
[1642641802096,0.11626561,41777.0,41775.0,0.059842]
[1642641802941,0.12226561,41777.0,41775.0,0.104842]
[1642641803142,0.19689887,41776.0,41775.0,0.104842]
[1642641803345,0.19689887,41776.0,41775.0,0.045]
[1642641803546,0.49723465,41776.0,41775.0,0.04506876]
[1642641803742,0.19689887,41776.0,41775.0,0.04506876]
[1642641804140,0.19689887,41776.0,41775.0,6.876e-05]
[1642641804543,0.19689887,41776.0,41773.0,0.00117075]
[1642641804745,0.19689887,41776.0,41774.0,8.595e-05]
[1642641804746,0.26912289,41775.0,41774.0,8.595e-05]
[1642641805143,0.31912289,41775.0,41774.0,8.595e-05]
[1642641805344,0.32478516,41775.0,41774.0,8.595e-05]
[1642641805544,0.59081365,41775.0,41774.0,8.595e-05]
[1642641805745,0.59081365,41775.0,41772.0,0.27736765]
[1642641805746,0.05985339,41774.0,41773.0,0.00010314]
[1642641806187,0.3325938,41774.0,41773.0,0.00010314]
[1642641806591,0.3804938,41774.0,41773.0,0.00010314]
[1642641806788,0.4304938,41774.0,41773.0,0.00010314]
[1642641806989,0.4304938,41774.0,41773.0,0.02510314]
[1642641806990,0.4404938,41774.0,41773.0,0.02510314]
[1642641807288,0.5003528,41774.0,41773.0,0.02510314]
[1642641807491,1.0,41773.0,41772.0,0.2763]
[1642641807691,0.85,41771.0,41770.0,0.001]
[1642641807890,1.29724751,41771.0,41770.0,0.001]
[1642641808290,1.30919751,41771.0,41770.0,0.001]
[1642641808689,1.30919751,41771.0,41764.0,0.00427146]
[1642641808690,1.29724751,41771.0,41764.0,0.00427146]
[1642641808890,0.00121957,41765.0,41764.0,0.00427146]
[1642641809089,0.00121957,41765.0,41759.0,0.001]
[1642641809090,0.18131864,41765.0,41759.0,0.001]
[1642641809389,0.28131864,41765.0,41760.0,0.00022347]
[1642641809590,0.28131864,41765.0,41760.0,0.00015116]
[1642641809790,0.059877,41763.0,41760.0,0.00015116]
[1642641810039,0.05,41761.0,41760.0,0.00015116]
[1642641810440,0.10443342,41762.0,41760.0,0.00015116]
[1642641810642,0.10443342,41762.0,41761.0,0.386767]
[1642641810939,0.05843342,41762.0,41761.0,0.71179973]
[1642641811541,0.01053342,41762.0,41761.0,0.71179973]
[1642641812140,0.00653342,41762.0,41761.0,0.71179973]
[1642641812341,0.00653342,41762.0,41761.0,0.32503273]
[1642641814918,0.00753342,41762.0,41761.0,0.00013397]
[1642641815721,0.00753342,41762.0,41760.0,0.00015116]
[1642641816324,0.20113274,41761.0,41760.0,0.00015116]
[1642641816520,0.30113274,41761.0,41760.0,0.00015116]
[1642641816819,0.25676638,41761.0,41760.0,0.00015116]
[1642641817019,0.25776638,41761.0,41760.0,0.00015116]
[1642641817845,0.30776638,41761.0,41760.0,0.00015116]
[1642641818245,0.30676638,41761.0,41760.0,0.00015116]
[1642641818849,0.25676638,41761.0,41760.0,0.00015116]
[1642641819045,0.26076638,41761.0,41760.0,0.00015116]
[1642641819846,0.31076638,41761.0,41760.0,0.00015116]
[1642641820247,0.30676638,41761.0,41760.0,0.00015116]
[1642641821049,0.26076638,41761.0,41760.0,0.00015116]
[1642641821693,0.05963364,41761.0,41760.0,0.00015116]
[1642641822296,0.05563364,41761.0,41760.0,0.00015116]
[1642641824694,0.00563364,41761.0,41760.0,0.00015116]
[1642641831294,0.26899488,41761.0,41760.0,0.00015116]
[1642641831494,0.31892081,41761.0,41760.0,0.00015116]
[1642641831992,0.05555957,41761.0,41760.0,0.00015116]
[1642641832443,0.05523868,41761.0,41760.0,0.00015116]
[1642641833045,0.05823868,41761.0,41760.0,0.00015116]
[1642641833844,0.10823868,41761.0,41760.0,0.00015116]
[1642641834244,0.10523868,41761.0,41760.0,0.00015116]
[1642641834944,0.11223868,41761.0,41760.0,0.00015116]
[1642641836291,0.10523868,41761.0,41760.0,0.00015116]
[1642641837096,0.14023868,41761.0,41760.0,0.00015116]
[1642641838293,0.10523868,41761.0,41760.0,0.00015116]
[1642641839095,0.13823868,41761.0,41760.0,0.00015116]
[1642641839796,0.08823868,41761.0,41760.0,0.00015116]
[1642641840040,0.13823868,41761.0,41760.0,0.00015116]
[1642641840237,0.10523868,41761.0,41760.0,0.00015116]
[1642641841037,0.09023868,41761.0,41760.0,0.00015116]
[1642641842241,0.05523868,41761.0,41760.0,0.00015116]
[1642641843037,0.07623868,41761.0,41760.0,0.00015116]
[1642641843893,0.47623868,41761.0,41760.0,0.00015116]
[1642641844294,0.05523868,41761.0,41760.0,0.00015116]
[1642641844693,0.10523868,41761.0,41760.0,0.00015116]
[1642641845096,0.12223868,41761.0,41760.0,0.00015116]
[1642641845994,0.07223868,41761.0,41760.0,0.00015116]
[1642641846193,0.05523868,41761.0,41760.0,0.00015116]
[1642641846994,0.06123868,41761.0,41760.0,0.00015116]
[1642641847749,0.01123868,41761.0,41760.0,0.00015116]
[1642641848451,0.00523868,41761.0,41760.0,0.00015116]
[1642641849151,0.00623868,41761.0,41760.0,0.00015116]
[1642641850255,0.00523868,41761.0,41760.0,0.00015116]
[1642641850452,0.29367121,41761.0,41760.0,0.00015116]
[1642641850653,0.00523868,41761.0,41760.0,0.00015116]
[1642641851052,0.01223868,41761.0,41760.0,0.00015116]
[1642641851890,0.27552158,41761.0,41760.0,0.00015116]
[1642641852292,0.26852158,41761.0,41760.0,0.00015116]
[1642641852893,0.31852158,41761.0,41760.0,0.00015116]
[1642641853092,0.33852158,41761.0,41760.0,0.00015116]
[1642641853692,0.33845724,41761.0,41760.0,0.00015116]
[1642641854293,0.31845724,41761.0,41760.0,0.00015116]
[1642641854940,0.61845724,41761.0,41760.0,0.00015116]
[1642641855144,0.62545724,41761.0,41760.0,0.00015116]
[1642641855343,0.99064095,41761.0,41760.0,0.00015116]
[1642641856342,0.98364095,41761.0,41760.0,0.00015116]
[1642641857244,1.00664095,41761.0,41760.0,0.00015116]
[1642641858045,0.70664095,41761.0,41760.0,0.00015116]
[1642641858243,0.34145724,41761.0,41760.0,0.00015116]
[1642641858443,0.31845724,41761.0,41760.0,0.00015116]
[1642641859101,0.34245724,41761.0,41760.0,0.00015116]
[1642641860203,0.34372391,41761.0,41760.0,0.00015116]
[1642641860405,0.3545996,41761.0,41760.0,0.00015116]
[1642641860802,0.71972391,41761.0,41760.0,0.00015116]
[1642641861202,0.78762391,41761.0,41760.0,0.00015116]
[1642641862441,0.36762391,41761.0,41760.0,0.00015116]
[1642641863141,0.38762391,41761.0,41760.0,0.00015116]
[1642641863342,0.33972391,41761.0,41760.0,0.00015116]
[1642641863741,0.73972391,41761.0,41760.0,0.00015116]
[1642641863942,0.78762391,41761.0,41760.0,0.00015116]
[1642641864343,1.17849162,41761.0,41760.0,0.00015116]
[1642641865142,1.19849162,41761.0,41760.0,0.00015116]
[1642641866396,1.17849162,41761.0,41760.0,0.00015116]
[1642641867197,0.79849162,41761.0,41760.0,0.00015116]
[1642641868100,0.38762391,41761.0,41760.0,0.00015116]
[1642641868298,0.05517434,41761.0,41760.0,0.00015116]
[1642641868498,0.00517434,41761.0,41760.0,0.00015116]
[1642641869095,0.02317434,41761.0,41760.0,0.00015116]
[1642641869937,0.07317434,41761.0,41760.0,0.00015116]
[1642641870442,0.05517434,41761.0,41760.0,0.00015116]
[1642641871141,0.07517434,41761.0,41760.0,0.00015116]
[1642641872441,0.05517434,41761.0,41760.0,0.00015116]
[1642641873146,0.07417434,41761.0,41760.0,0.00015116]
[1642641873343,0.12417434,41761.0,41760.0,0.00015116]
[1642641873541,0.07417434,41761.0,41760.0,0.00015116]
[1642641874600,0.0741035,41761.0,41760.0,0.00015116]
[1642641874802,0.1339775,41761.0,41760.0,0.00015116]
[1642641875003,0.1149775,41761.0,41760.0,0.00015116]
[1642641875202,0.1339775,41761.0,41760.0,0.00015116]
[1642641876003,0.1839775,41761.0,41760.0,0.00015116]
[1642641876505,0.05988,41758.0,41752.0,0.00423348]
[1642641876704,0.39873293,41757.0,41752.0,0.00423348]
[1642641876903,0.39873293,41757.0,41753.0,0.00012033]
[1642641876904,0.03048436,41755.0,41753.0,0.00012033]
[1642641877103,0.0479,41754.0,41753.0,0.00012033]
[1642641877548,1.20170457,41754.0,41753.0,0.00012033]
[1642641877946,0.31383578,41746.0,41744.0,0.00027505]
[1642641878149,0.37074132,41746.0,41744.0,0.00027505]
[1642641878846,0.2244541,41745.0,41744.0,0.00027505]
[1642641879046,0.2744541,41745.0,41744.0,0.00027505]
[1642641879248,0.4109794,41745.0,41738.0,0.41557505]
[1642641879647,0.67865387,41745.0,41739.0,8.595e-05]
[1642641880048,0.67865387,41745.0,41739.0,0.00113504]
[1642641880346,0.67865387,41745.0,41740.0,6.876e-05]
[1642641880347,0.059894,41743.0,41740.0,6.876e-05]
[1642641880547,0.32654668,41742.0,41740.0,6.876e-05]
[1642641881198,0.06458911,41742.0,41740.0,6.876e-05]
[1642641881400,0.12449111,41742.0,41740.0,0.05995676]
[1642641882301,0.05758911,41742.0,41740.0,0.05495676]
[1642641882501,0.00758911,41742.0,41740.0,0.05495676]
[1642641884003,0.06747711,41742.0,41740.0,0.05495676]
[1642641885443,0.12736375,41742.0,41740.0,0.05495676]
[1642641885943,0.17736375,41742.0,41740.0,0.05495676]
[1642641886345,0.05758911,41742.0,41740.0,0.05495676]
[1642641886545,0.00758911,41742.0,41740.0,0.05495676]
[1642641886744,0.00758911,41742.0,41741.0,0.386767]
[1642641887144,0.00758911,41742.0,41741.0,0.486767]
[1642641889200,0.27352014,41750.0,41742.0,0.559878]
[1642641889502,0.17905163,41747.0,41744.0,0.059878]
[1642641889899,0.23893354,41747.0,41740.0,6.876e-05]
[1642641890099,0.28893354,41747.0,41740.0,6.876e-05]
[1642641890701,0.059896,41746.0,41740.0,6.876e-05]
[1642641890903,0.059896,41746.0,41741.0,0.00104902]
[1642641890904,0.09291,41746.0,41741.0,0.00104902]
[1642641891701,0.059895,41745.0,41741.0,0.00104902]
[1642641891902,0.059895,41745.0,41740.0,6.876e-05]
[1642641892102,0.05,41745.0,41741.0,0.00104902]
[1642641892547,0.16978745,41746.0,41741.0,0.00104902]
[1642641892750,0.05989163,41745.0,41741.0,0.00104902]
[1642641892947,0.059892,41744.0,41740.0,0.05995976]
[1642641893150,0.059892,41744.0,41741.0,0.00104902]
[1642641893354,0.03512415,41742.0,41741.0,0.00104902]
[1642641893547,0.78380855,41742.0,41741.0,0.00104902]
[1642641893747,0.78404786,41742.0,41741.0,0.00104902]
[1642641893952,0.08404786,41742.0,41738.0,0.41557505]
[1642641894149,0.74116414,41741.0,41738.0,0.41557505]
[1642641894348,0.41264247,41740.0,41738.0,0.41557505]
[1642641894747,0.17903897,41739.0,41738.0,0.41557505]
[1642641895149,0.29885326,41739.0,41738.0,0.41557505]
[1642641895550,0.5660908,41739.0,41738.0,0.41557505]
[1642641896601,0.6160908,41739.0,41738.0,0.41557505]
[1642641896798,0.74554354,41739.0,41738.0,0.41557505]
[1642641897296,1.50754354,41739.0,41738.0,0.41557505]
[1642641897500,1.839506,41739.0,41737.0,0.0011]
[1642641897697,1.06117595,41738.0,41737.0,0.0011]
[1642641897896,1.10907595,41738.0,41737.0,0.0011]
[1642641898097,1.15907595,41738.0,41737.0,0.0011]
[1642641898697,1.65907595,41738.0,41737.0,0.0011]
[1642641898997,0.65907595,41738.0,41737.0,0.0011]
[1642641899201,0.68594319,41738.0,41737.0,0.0011]
[1642641899598,0.96254265,41738.0,41737.0,0.0011]
[1642641900250,0.62476724,41738.0,41737.0,0.0011]
[1642641900453,0.65576724,41738.0,41737.0,0.0011]
[1642641900848,0.60576724,41738.0,41737.0,0.0011]
[1642641901250,0.11876724,41738.0,41737.0,0.0011]
[1642641901953,0.06876724,41738.0,41737.0,0.0011]
[1642641902152,0.41510531,41738.0,41737.0,0.0011]
[1642641902353,1.34602248,41738.0,41737.0,0.0011]
[1642641902550,1.36206403,41738.0,41737.0,0.0011]
[1642641902949,1.06163441,41738.0,41737.0,0.0011]
[1642641903151,1.07463441,41738.0,41737.0,0.0011]
[1642641903350,1.06268441,41738.0,41737.0,0.0011]
[1642641904094,1.56268441,41738.0,41737.0,0.0011]
[1642641904498,1.54968441,41738.0,41737.0,0.0011]
[1642641905295,1.56368441,41738.0,41737.0,0.0011]
[1642641905696,1.56368441,41738.0,41737.0,0.0010294]
[1642641906495,1.0,41737.0,41735.0,0.00103952]
[1642641906698,1.0,41737.0,41734.0,0.0011]
[1642641906699,1.0,41735.0,41734.0,0.0011]
[1642641906896,1.0,41734.0,41728.0,0.00515879]
[1642641907100,0.13124217,41732.0,41728.0,0.00515879]
[1642641907295,0.1870327,41732.0,41731.0,0.00015471]
[1642641907544,1.81990182,41732.0,41731.0,0.00015471]
[1642641907748,2.29982197,41732.0,41731.0,0.00015471]
[1642641907943,2.78966626,41732.0,41731.0,0.00015471]
[1642641908744,3.30161626,41732.0,41731.0,0.00015471]
[1642641908944,3.28966626,41732.0,41731.0,0.00015471]
[1642641909145,1.87574097,41732.0,41731.0,0.00015471]
[1642641909348,1.82574097,41732.0,41731.0,0.00015471]
[1642641909546,1.81582197,41732.0,41731.0,0.00015471]
[1642641910545,1.79982197,41732.0,41731.0,0.00015471]
[1642641910946,1.74982197,41732.0,41731.0,0.00015471]
[1642641911201,2.21782197,41732.0,41731.0,0.00015471]
[1642641911802,1.72977197,41732.0,41731.0,0.00015471]
[1642641912412,0.00120184,41730.0,41729.0,0.00203016]
[1642641912608,1.05622033,41730.0,41729.0,0.00203016]
[1642641913004,1.60622033,41730.0,41729.0,0.00203016]
[1642641913202,1.62022033,41730.0,41729.0,0.00203016]
[1642641913403,1.62022033,41730.0,41728.0,0.001]
[1642641913404,1.67022033,41730.0,41728.0,0.001]
[1642641914009,1.73014833,41730.0,41728.0,0.001]
[1642641914207,1.73014833,41730.0,41721.0,0.00412158]
[1642641914208,1.0,41729.0,41721.0,0.00412158]
[1642641914407,0.119865,41726.0,41721.0,0.00412158]
[1642641914606,0.00121796,41724.0,41722.0,0.00015471]
[1642641914807,0.4979,41723.0,41722.0,0.00015471]
[1642641915069,0.4979,41723.0,41720.0,0.00018909]
[1642641915070,0.0479,41723.0,41720.0,0.00018909]
[1642641915467,0.2341769,41722.0,41720.0,0.00018909]
[1642641915865,0.28939413,41722.0,41720.0,0.00018909]
[1642641916469,1.0,41721.0,41718.0,0.0021]
[1642641916670,0.13127809,41719.0,41718.0,0.0021]
[1642641916867,1.02917809,41719.0,41718.0,0.0021]
[1642641917068,1.03705936,41719.0,41718.0,0.0021]
[1642641917266,1.04905936,41719.0,41718.0,0.0021]
[1642641917672,1.08557936,41719.0,41718.0,0.0021]
[1642641918468,1.07357936,41719.0,41718.0,0.0021]
[1642641918697,1.3989032,41719.0,41718.0,0.0021]
[1642641918897,1.4489032,41719.0,41718.0,0.0021]
[1642641919297,1.4709032,41719.0,41718.0,0.0021]
[1642641919997,1.1209032,41719.0,41718.0,0.0021]
[1642641920202,0.6709032,41719.0,41718.0,0.0021]
[1642641920497,0.6489032,41719.0,41718.0,0.0021]
[1642641920796,0.6123832,41719.0,41718.0,0.0021]
[1642641921200,1.1343832,41719.0,41718.0,0.0021]
[1642641922001,0.5,41718.0,41717.0,0.00213]
[1642641922202,0.84030535,41718.0,41717.0,0.00213]
[1642641922446,0.3,41717.0,41716.0,0.00164186]
[1642641922647,0.63588744,41717.0,41716.0,0.00164186]
[1642641922854,0.33588744,41717.0,41716.0,0.00171062]
[1642641923046,0.33588744,41717.0,41716.0,0.00069876]
[1642641923247,0.36688744,41717.0,41716.0,0.00069876]
[1642641923745,0.0789,41717.0,41716.0,0.00069876]
[1642641924149,0.031,41717.0,41716.0,0.00069876]
[1642641924549,0.00735372,41718.0,41716.0,0.00069876]
[1642641925150,0.00735372,41718.0,41716.0,0.06062176]
[1642641925451,0.02035372,41718.0,41716.0,0.00269876]
[1642641925647,0.08028105,41718.0,41716.0,0.00269876]
[1642641926499,0.13028105,41718.0,41716.0,0.00269876]
[1642641926698,0.08028105,41718.0,41716.0,0.00269876]
[1642641926898,0.13028105,41718.0,41716.0,0.00269876]
[1642641927099,0.13028105,41718.0,41715.0,0.12085791]
[1642641927299,0.12728105,41718.0,41716.0,0.009]
[1642641928702,0.11728105,41718.0,41715.0,0.12085791]
[1642641929103,0.11728105,41718.0,41715.0,0.119846]
[1642641929402,0.12628105,41718.0,41715.0,0.13085791]
[1642641930146,0.12628105,41718.0,41715.0,0.129846]
[1642641930347,0.06635372,41718.0,41715.0,0.189772]
[1642641930548,0.00735372,41718.0,41715.0,0.179772]
[1642641930752,0.00735372,41718.0,41714.0,0.06093393]
[1642641931048,0.00735372,41718.0,41713.0,0.71851193]
[1642641931248,0.059936,41717.0,41714.0,0.015]
[1642641931449,0.17980778,41717.0,41714.0,0.015]
[1642641931650,0.18513811,41717.0,41714.0,0.015]
[1642641931849,0.23513811,41717.0,41714.0,0.015]
[1642641932049,0.22386158,41716.0,41714.0,0.015]
[1642641933252,0.22786158,41716.0,41714.0,0.018]
[1642641933449,0.28779958,41716.0,41714.0,0.018]
[1642641933700,0.56131987,41716.0,41714.0,0.018]
[1642641933899,0.27309371,41715.0,41714.0,0.018]
[1642641934099,0.32984553,41715.0,41714.0,0.018]
[1642641934498,0.32984553,41715.0,41713.0,0.71851193]
[1642641934499,0.48054553,41715.0,41713.0,0.71851193]
[1642641934798,0.72469859,41714.0,41713.0,0.71851193]
[1642641934997,0.32469859,41714.0,41713.0,0.71851193]
[1642641935397,0.69720646,41714.0,41713.0,0.71851193]
[1642641935901,0.75715046,41714.0,41713.0,0.71851193]
[1642641936498,0.74215046,41714.0,41713.0,0.71851193]
[1642641936696,0.41745187,41714.0,41713.0,0.71851193]
[1642641936899,0.16459447,41715.0,41713.0,0.71851193]
[1642641937299,0.029,41714.0,41713.0,0.71851193]
[1642641937948,0.40634898,41714.0,41713.0,0.71851193]
[1642641938553,0.37734898,41714.0,41713.0,0.71851193]
[1642641939149,0.42734898,41714.0,41713.0,0.71851193]
[1642641939351,0.45202408,41714.0,41713.0,0.71851193]
[1642641939952,0.72377396,41714.0,41713.0,0.71851193]
[1642641940556,0.70577396,41714.0,41713.0,0.71851193]
[1642641940854,0.75577396,41714.0,41713.0,0.71851193]
[1642641941309,0.78477396,41714.0,41713.0,0.71851193]
[1642641941513,0.0856751,41714.0,41713.0,0.71851193]
[1642641942511,0.80805827,41714.0,41713.0,0.71851193]
[1642641942919,1.03852705,41713.0,41711.0,0.00100284]
[1642641943115,1.3592923,41712.0,41711.0,0.00100284]
[1642641943314,0.00126206,41707.0,41706.0,6e-05]
[1642641943514,1.13407785,41707.0,41706.0,6e-05]
[1642641943722,0.46509465,41707.0,41706.0,0.0002319]
[1642641944113,0.13407785,41707.0,41706.0,0.0002319]
[1642641944313,0.08281579,41707.0,41706.0,0.0002319]
[1642641944713,0.05534579,41707.0,41706.0,0.0002319]
[1642641945376,0.15995579,41707.0,41706.0,0.0002319]
[1642641945678,0.20995579,41707.0,41706.0,0.0002319]
[1642641946380,0.40402973,41707.0,41706.0,0.0002319]
[1642641946576,0.39902973,41707.0,41706.0,0.0002319]
[1642641946777,0.89902973,41707.0,41706.0,0.0002319]
[1642641947174,0.94902973,41707.0,41706.0,0.0002319]
[1642641947376,0.75678221,41707.0,41706.0,0.0002319]
[1642641947576,0.92898673,41707.0,41706.0,0.0002319]
[1642641947980,0.97688673,41707.0,41706.0,0.0002319]
[1642641948578,0.9661783,41707.0,41706.0,0.0002319]
[1642641949025,0.67737009,41707.0,41706.0,0.0002319]
[1642641949222,0.72737009,41707.0,41706.0,0.0002319]
[1642641949419,0.79237009,41707.0,41706.0,0.0002319]
[1642641949819,1.14237009,41707.0,41706.0,0.0002319]
[1642641950019,0.79237009,41707.0,41706.0,0.0002319]
[1642641950219,0.74237009,41707.0,41706.0,0.0002319]
[1642641950523,0.68510452,41707.0,41706.0,0.0002319]
[1642641950729,0.68510452,41707.0,41699.0,0.059957]
[1642641950730,3.27693028,41700.0,41699.0,0.059957]
[1642641950924,3.32483028,41700.0,41698.0,0.43467263]
[1642641951320,2.84417318,41700.0,41698.0,0.43467263]
[1642641951723,3.02334578,41700.0,41698.0,0.85437116]
[1642641951920,2.54370476,41700.0,41699.0,0.24527775]
[1642641953353,2.55970476,41700.0,41699.0,0.24527775]
[1642641954555,2.54370476,41700.0,41699.0,0.24527775]
[1642641955355,2.54770476,41700.0,41699.0,0.24527775]
[1642641955754,2.49980476,41700.0,41699.0,0.24527775]
[1642641956604,2.26067626,41700.0,41699.0,0.24527775]
[1642641957011,2.25667626,41700.0,41699.0,0.24527775]
[1642641957405,2.25667626,41700.0,41699.0,0.29527775]
[1642641957606,2.25667626,41700.0,41699.0,0.89527775]
[1642641957804,2.25667626,41700.0,41699.0,0.29527775]
[1642641958704,2.25667626,41700.0,41699.0,0.79527775]
[1642641958905,2.25667626,41700.0,41699.0,0.68204475]
[1642641959103,2.25667626,41700.0,41699.0,0.78204475]
[1642641959306,2.25667626,41700.0,41699.0,1.06577985]
[1642641959509,1.77715825,41700.0,41699.0,1.46577985]
[1642641959706,0.90721585,41716.0,41705.0,0.05994]
[1642641959958,0.90721585,41716.0,41704.0,0.119879]
[1642641960160,0.00015471,41715.0,41705.0,0.05]
[1642641960358,0.00015471,41715.0,41708.0,0.00099386]
[1642641960559,0.00013752,41714.0,41710.0,0.28283828]
[1642641960761,0.24407775,41713.0,41710.0,0.059932]
[1642641960959,0.24419808,41713.0,41710.0,0.17979505]
[1642641961157,0.00010314,41712.0,41710.0,0.11986305]
[1642641961361,0.00010314,41712.0,41710.0,0.22086305]
[1642641961557,8.595e-05,41711.0,41710.0,0.22086305]
[1642641961760,8.595e-05,41711.0,41710.0,0.17086305]
[1642641962558,8.595e-05,41711.0,41710.0,0.60763005]
[1642641962759,8.595e-05,41711.0,41710.0,0.55663005]
[1642641962958,8.595e-05,41711.0,41710.0,0.50663005]
[1642641963359,8.595e-05,41711.0,41710.0,0.53263005]
[1642641963807,8.595e-05,41711.0,41710.0,0.14586305]
[1642641964102,8.595e-05,41711.0,41710.0,0.19586305]
[1642641964302,8.595e-05,41711.0,41710.0,0.14586305]
[1642641964806,8.595e-05,41711.0,41710.0,0.11986305]
[1642641965402,8.595e-05,41711.0,41710.0,0.14886305]
[1642641965403,0.00608595,41711.0,41710.0,0.14886305]
[1642641966605,8.595e-05,41711.0,41710.0,0.11986305]
[1642641967455,0.01008595,41711.0,41710.0,0.13586305]
[1642641968952,8.595e-05,41711.0,41710.0,0.11986305]
[1642641969559,0.01008595,41711.0,41710.0,0.017]
[1642641970655,0.23351716,41711.0,41708.0,0.06093186]
[1642641970855,0.23351716,41711.0,41709.0,0.0599467]
[1642641971054,6.876e-05,41710.0,41709.0,0.0599467]
[1642641971507,6.876e-05,41710.0,41709.0,0.0639467]
[1642641972711,6.876e-05,41710.0,41709.0,0.0599467]
[1642641973310,0.28691451,41710.0,41709.0,0.0599467]
[1642641973510,0.28691451,41710.0,41709.0,0.0659467]
[1642641973511,0.01706876,41710.0,41709.0,0.0659467]
[1642641974613,6.876e-05,41710.0,41709.0,0.0599467]
[1642641975450,0.02206876,41710.0,41709.0,0.0629467]
[1642641976653,0.02206876,41710.0,41709.0,0.0599467]
[1642641976851,6.876e-05,41710.0,41709.0,0.0599467]
[1642641977351,0.31118647,41710.0,41709.0,0.0609467]
[1642641977955,0.02506876,41710.0,41709.0,0.0609467]
[1642641978805,6.876e-05,41710.0,41709.0,0.0599467]
[1642641979407,0.02306876,41710.0,41709.0,0.29570337]
[1642641979712,0.02306876,41710.0,41709.0,0.0599467]
[1642641980608,1.81e-06,41710.0,41709.0,0.0599467]
[1642641981508,0.02200181,41710.0,41709.0,0.30451571]
[1642641981909,0.02200181,41710.0,41709.0,0.69128271]
[1642641982759,1.81e-06,41710.0,41709.0,0.30051571]
[1642641982961,1.81e-06,41710.0,41709.0,0.0599467]
[1642641983360,1.81e-06,41710.0,41709.0,0.0829467]
[1642641983556,0.40500181,41710.0,41709.0,0.0829467]
[1642641983956,1.01426225,41710.0,41709.0,0.0829467]
[1642641984157,1.00305861,41710.0,41709.0,0.0829467]
[1642641984757,0.99805861,41710.0,41709.0,0.0599467]
[1642641984958,1.81e-06,41710.0,41709.0,0.0599467]
[1642641985563,0.01900181,41710.0,41709.0,0.0599467]
[1642641986799,1.81e-06,41710.0,41709.0,0.0599467]
[1642641987400,0.01900181,41710.0,41709.0,0.0599467]
[1642641988701,1.81e-06,41710.0,41709.0,0.0599467]
[1642641989405,0.02700181,41710.0,41709.0,0.0599467]
[1642641990755,1.81e-06,41710.0,41709.0,0.0599467]
[1642641991550,0.02300181,41710.0,41709.0,0.0599467]
[1642641992752,0.28530029,41710.0,41709.0,0.0599467]
[1642641993554,0.30830029,41710.0,41709.0,0.0599467]
[1642641993806,0.02300181,41710.0,41709.0,0.0599467]
[1642641994810,1.81e-06,41710.0,41709.0,0.0599467]
[1642641995011,0.04790181,41710.0,41709.0,0.0599467]
[1642641995209,0.38110989,41710.0,41709.0,0.0599467]
[1642641995608,0.39110989,41710.0,41709.0,0.0599467]
[1642641996812,0.38110989,41710.0,41709.0,0.0599467]
[1642641997012,0.39305989,41710.0,41709.0,0.0599467]
[1642641997451,0.39510989,41710.0,41709.0,0.0599467]
[1642641998453,0.40705989,41710.0,41709.0,0.0599467]
[1642641998856,0.39305989,41710.0,41709.0,0.0599467]
[1642641999555,0.40805989,41710.0,41709.0,0.0599467]
[1642641999956,0.39610989,41710.0,41709.0,0.0599467]
[1642642000957,0.06290181,41710.0,41709.0,0.0599467]
[1642642001207,0.04790181,41710.0,41709.0,0.0599467]
[1642642001603,0.06990181,41710.0,41709.0,0.0599467]
[1642642002202,0.02200181,41710.0,41709.0,0.0599467]
[1642642002803,1.81e-06,41710.0,41709.0,0.0599467]
[1642642003606,0.01700181,41710.0,41709.0,0.0599467]
[1642642004206,0.06490181,41710.0,41709.0,0.0599467]
[1642642004411,0.42383076,41710.0,41709.0,0.0599467]
[1642642004607,0.42383076,41710.0,41706.0,0.5]
[1642642004807,0.42383076,41710.0,41707.0,0.0009939]
[1642642004808,0.05996,41709.0,41707.0,0.0009939]
[1642642005058,0.35878023,41708.0,41707.0,0.06095403]
[1642642005657,0.36978023,41708.0,41707.0,0.06095403]
[1642642005857,0.36978023,41708.0,41707.0,0.05996013]
[1642642006361,0.36978023,41708.0,41706.0,0.6199109]
[1642642006557,0.28628473,41707.0,41706.0,0.6199109]
[1642642006858,0.33418473,41707.0,41706.0,0.61997785]
[1642642007458,0.34518473,41707.0,41706.0,0.61997785]
[1642642007958,0.0589,41707.0,41706.0,0.61997785]
[1642642009007,0.011,41707.0,41706.0,0.61997785]
[1642642009605,0.023,41707.0,41706.0,0.61997785]
[1642642010005,0.05996,41709.0,41706.0,0.61997785]
[1642642011406,0.05996,41709.0,41707.0,0.05995144]
[1642642011610,0.28874838,41708.0,41707.0,0.05995144]
[1642642012007,0.07296,41709.0,41707.0,0.05995144]